bitfinex-derivatives/quotes_SOLF0:USTF0_20250817
["timestamp","ask_amount","ask_price","bid_price","bid_amount"]
[1755464220645,3.01,191.31,191.29,2.93]
[1755464220958,3.01,191.31,191.28,1.57042287]
[1755464221158,3.01,191.31,191.27,4.50042287]
[1755464221557,3.01,191.31,191.27,1.57042287]
[1755464221757,3.01,191.31,191.28,2.93]
[1755464224553,3.01,191.31,191.28,4.50042287]
[1755464225259,3.01,191.31,191.28,1.57042287]
[1755464225463,3.01,191.31,191.28,4.50042287]
[1755464227155,3.01,191.31,191.29,2.93]
[1755464229861,3.01,191.31,191.27,1.57042287]
[1755464230061,3.01,191.31,191.28,2.93]
[1755464230462,3.01,191.31,191.27,1.57042287]
[1755464230662,3.01,191.31,191.29,2.93]
[1755464237188,3.01,191.31,191.25,2.93]
[1755464237390,3.01,191.31,191.28,2.93]
[1755464237589,4.73908994,191.3,191.28,2.93]
[1755464237789,3.02,191.29,191.28,2.93]
[1755464238191,3.02,191.31,191.28,2.93]
[1755464238386,4.73888323,191.3,191.28,2.93]
[1755464238587,3.02,191.3,191.28,2.93]
[1755464239187,3.02,191.31,191.28,1.57042287]
[1755464239490,7.76007736,191.3,191.29,3.02]
[1755464240485,3.02,191.3,191.29,3.02]
[1755464244092,3.02,191.3,191.26,1.57042287]
[1755464244489,3.02,191.3,191.29,3.02]
[1755464245094,3.02,191.29,191.22,4.59042287]
[1755464245390,3.02,191.31,191.25,3.02]
[1755464245582,3.02,191.29,191.28,3.02]
[1755464245781,11.65011785,191.29,191.28,3.02]
[1755464245994,11.65076408,191.29,191.28,3.02]
[1755464246292,3.02,191.28,191.27,3.02]
[1755464247285,3.02,191.28,191.26,3.02]
[1755464247791,3.02,191.34,191.27,3.02]
[1755464247994,8.60424944,191.33,191.3,3.02]
[1755464248185,8.60424944,191.32,191.3,3.02]
[1755464248389,11.62423723,191.31,191.3,3.02]
[1755464249486,3.02,191.31,191.3,3.02]
[1755464249683,3.02,191.34,191.3,3.02]
[1755464249991,3.02,191.31,191.3,3.02]
[1755464252492,3.02,191.36,191.3,3.02]
[1755464252693,8.60826119,191.35,191.3,3.02]
[1755464252895,3.02,191.33,191.3,3.02]
[1755464253195,6.91323007,191.32,191.3,3.02]
[1755464253397,3.02,191.32,191.3,3.02]
[1755464253996,1.57042287,191.37,191.3,3.02]
[1755464254198,3.02,191.31,191.3,3.02]
[1755464254395,3.02,191.31,191.3,1.57042287]
[1755464254596,3.89414397,191.31,191.3,3.02]
[1755464255206,6.91414397,191.31,191.3,3.02]
[1755464255502,3.89414397,191.31,191.3,3.02]
[1755464255802,6.91414397,191.31,191.3,3.02]
[1755464257395,3.89414397,191.31,191.3,3.02]
[1755464257598,3.02,191.37,191.3,3.02]
[1755464257800,3.02,191.35,191.34,1.57042287]
[1755464258103,11.64091602,191.35,191.34,1.57042287]
[1755464258301,11.64091602,191.35,191.34,4.59042287]
[1755464259300,11.64084284,191.35,191.34,4.59042287]
[1755464259502,6.91928803,191.35,191.34,4.59042287]
[1755464260005,3.89928803,191.35,191.34,3.02]
[1755464260209,6.91928803,191.35,191.34,3.02]
[1755464262709,11.63993559,191.35,191.34,3.02]
[1755464262909,8.61993559,191.35,191.34,3.02]
[1755464263504,11.63993559,191.35,191.34,3.02]
[1755464264110,3.02,191.34,191.32,3.02]
[1755464267913,1.57042287,191.39,191.34,2.87]
[1755464267914,2.9,191.38,191.34,2.87]
[1755464268214,8.61656752,191.37,191.33,1.57042287]
[1755464268415,2.9,191.35,191.33,1.57042287]
[1755464268917,2.9,191.35,191.34,2.87]
[1755464269117,11.51600453,191.35,191.34,2.87]
[1755464269803,11.51600453,191.35,191.33,1.57042287]
[1755464270009,2.9,191.34,191.33,4.44042287]
[1755464271415,2.9,191.36,191.33,4.44042287]
[1755464271615,11.5127682,191.35,191.34,2.87]
[1755464271812,2.9,191.35,191.34,2.87]
[1755464273013,2.9,191.41,191.34,2.87]
[1755464273216,0.03795972,191.36,191.35,1.57042287]
[1755464273412,0.03795972,191.36,191.2,10.4535]
[1755464273719,2.9,191.4,191.35,2.87]
[1755464274012,2.9,191.38,191.35,2.87]
[1755464274215,2.9,191.36,191.35,2.87]
[1755464274518,6.79523046,191.36,191.35,2.87]
[1755464278120,2.9,191.36,191.35,2.87]
[1755464287824,2.9,191.36,191.34,1.57042287]
[1755464288030,0.0359821,191.39,191.31,2.87]
[1755464288031,10.19161715,191.35,191.31,2.87]
[1755464288221,4.47042287,191.33,191.29,2.87]
[1755464288422,8.62119428,191.32,191.29,2.87]
[1755464288725,126.86,191.36,191.27,2.87]
[1755464288726,2.9,191.3,191.27,2.87]
[1755464288925,8.61843814,191.29,191.27,2.87]
[1755464289227,2.9,191.3,191.27,2.87]
[1755464289425,2.9,191.28,191.27,2.87]
[1755464290624,2.9,191.27,191.24,2.87]
[1755464290833,2.9,191.27,191.25,2.87]
[1755464291226,2.9,191.27,191.26,2.87]
[1755464292132,4.47042287,191.27,191.19,2.87]
[1755464292433,2.9,191.26,191.23,2.87]
[1755464292628,2.9,191.28,191.25,2.87]
[1755464292830,0.03959034,191.26,191.25,2.87]
[1755464293238,2.9,191.27,191.25,2.87]
[1755464293630,2.93686508,191.27,191.25,2.87]
[1755464295638,0.03686508,191.27,191.25,2.87]
[1755464295837,2.9,191.26,191.25,2.87]
[1755464298741,2.9,191.26,191.23,2.94]
[1755464299142,2.96,191.25,191.22,2.94]
[1755464300342,2.96,191.26,191.22,2.94]
[1755464303044,2.96,191.25,191.22,2.94]
[1755464305650,2.99686508,191.27,191.24,2.94]
[1755464306642,0.03686508,191.27,191.26,2.94]
[1755464307140,2.96,191.31,191.26,2.94]
[1755464307443,1.57042287,191.33,191.28,2.94]
[1755464307647,2.96,191.34,191.28,2.94]
[1755464307839,1.57042287,191.35,191.28,2.94]
[1755464307840,2.96,191.29,191.28,2.94]
[1755464308239,2.96,191.29,191.27,1.57042287]
[1755464308441,2.96,191.29,191.27,4.51042287]
[1755464308945,2.96,191.29,191.28,2.94]
[1755464310146,2.96,191.29,191.27,4.51042287]
[1755464310346,2.96,191.29,191.26,2.94]
[1755464311147,2.99997537,191.29,191.26,2.94]
[1755464311451,2.96,191.28,191.25,1.57042287]
[1755464311751,2.96,191.27,191.25,1.57042287]
[1755464311950,0.03997537,191.29,191.26,2.94]
[1755464312348,2.96,191.28,191.26,2.94]
[1755464312850,2.96,191.27,191.26,2.94]
[1755464314854,0.03997537,191.29,191.26,2.94]
[1755464315552,2.99997537,191.29,191.26,2.94]
[1755464316548,0.03997537,191.29,191.26,2.94]
[1755464317551,2.99997537,191.29,191.26,2.94]
[1755464317952,0.03997537,191.29,191.26,2.94]
[1755464318351,2.99997537,191.29,191.26,2.94]
[1755464320558,2.96,191.28,191.26,2.94]
[1755464324363,2.96,191.27,191.26,2.94]
[1755464326360,2.96,191.28,191.26,2.94]
[1755464326562,0.03997537,191.29,191.27,2.94]
[1755464327063,0.03997537,191.29,191.28,2.94]
[1755464327764,0.03997537,191.29,191.28,8.1646]
[1755464335374,3.02,191.32,191.3,2.85]
[1755464335773,3.02,191.31,191.3,2.85]
[1755464336374,3.02,191.31,191.3,4.41952377]
[1755464338874,3.02,191.33,191.3,1.56952377]
[1755464339074,3.02,191.33,191.32,4.41952377]
[1755464350389,3.02,191.33,191.32,1.56952377]
[1755464350589,3.02,191.33,191.32,4.41952377]
[1755464363804,2.79,191.39,191.33,3.0]
[1755464364101,2.79,191.37,191.34,3.0]
[1755464364301,2.79,191.35,191.34,3.0]
[1755464364804,2.79,191.35,191.34,3.03709184]
[1755464364996,2.79,191.35,191.34,0.03709184]
[1755464366402,3.89728256,191.35,191.34,0.03709184]
[1755464366601,8.62250018,191.35,191.28,4.56952377]
[1755464366807,2.79,191.31,191.24,1.56952377]
[1755464367000,2.79,191.29,191.22,1.56952377]
[1755464367200,2.79,191.29,191.23,3.0]
[1755464367998,0.03416939,191.28,191.23,3.0]
[1755464368205,2.79,191.27,191.23,3.0]
[1755464372801,2.79,191.27,191.24,3.0]
[1755464374509,2.79,191.27,191.23,3.0]
[1755464378310,2.79,191.27,191.24,3.0]
[1755464379607,2.79,191.27,191.21,1.56952377]
[1755464379817,2.79,191.27,191.25,3.0]
[1755464380207,1.60369316,191.28,191.21,3.0]
[1755464380408,1.56952377,191.24,191.19,3.0]
[1755464380606,2.79,191.23,191.19,3.0]
[1755464380803,2.79,191.23,191.18,3.0]
[1755464381207,2.79,191.21,191.16,3.0]
[1755464382309,2.79,191.21,191.15,3.0]
[1755464383211,1.56952377,191.2,191.14,4.56952377]
[1755464383411,2.79,191.19,191.15,3.0]
[1755464383914,2.82565015,191.19,191.15,3.0]
[1755464384414,2.82565015,191.19,191.13,3.0]
[1755464384917,2.82565015,191.19,191.15,3.0]
[1755464386119,2.82565015,191.19,191.17,3.0]
[1755464386312,2.79,191.18,191.16,3.0]
[1755464386514,2.79,191.18,191.14,3.0]
[1755464386715,2.79,191.17,191.14,3.0]
[1755464388320,0.03565015,191.19,191.13,1.56952377]
[1755464388321,3.04,191.18,191.13,1.56952377]
[1755464388515,3.04,191.18,191.15,3.04]
[1755464389110,3.04,191.18,191.13,1.56952377]
[1755464389416,3.04,191.18,191.14,3.04]
[1755464389816,3.04,191.17,191.14,3.04]
[1755464390018,3.04,191.17,191.13,1.56952377]
[1755464390218,1.60517392,191.19,191.13,1.56952377]
[1755464390418,3.04,191.18,191.11,3.04]
[1755464398225,3.04,191.18,191.11,5.2291]
[1755464398421,3.04,191.18,191.12,3.04]
[1755464399922,3.04,191.18,191.14,3.04]
[1755464400124,0.03565015,191.19,191.13,2.45722069]
[1755464400423,2.45722069,191.25,191.17,3.04]
[1755464400621,0.03746713,191.18,191.17,3.04]
[1755464401021,3.04,191.18,191.17,3.04]
[1755464401226,3.04,191.24,191.14,3.04]
[1755464401529,3.04,191.18,191.14,3.04]
[1755464402226,3.04,191.18,191.1,2.45722069]
[1755464402227,3.04,191.18,191.15,3.04]
[1755464402424,3.04,191.18,191.13,3.04]
[1755464402627,3.04,191.18,191.14,3.04]
[1755464404031,3.04,191.18,191.11,3.04]
[1755464411928,3.04,191.18,191.11,8.2692]
[1755464412134,3.04,191.18,191.12,3.04]
[1755464414435,3.04,191.18,191.1,7.68672069]
[1755464414436,3.04,191.18,191.15,3.04]
[1755464417136,3.04,191.18,191.16,3.04]
[1755464418025,3.04,191.18,191.15,2.96]
[1755464418730,3.89232986,191.17,191.14,1.57247259]
[1755464418935,3.04,191.18,191.14,4.53247259]
[1755464419232,3.05,191.16,191.13,1.57247259]
[1755464419433,3.05,191.16,191.15,2.96]
[1755464420137,0.03388171,191.17,191.13,4.53247259]
[1755464420337,3.05,191.15,191.13,1.57247259]
[1755464420638,3.05,191.15,191.14,2.96]
[1755464423041,3.05,191.14,191.01,55.65354676]
[1755464423231,3.05,191.13,191.09,1.57247259]
[1755464423543,3.05,191.15,191.11,2.96]
[1755464423742,3.05,191.13,191.11,2.96]
[1755464423945,3.08973944,191.13,191.11,2.96]
[1755464426142,3.08973944,191.13,191.09,1.57247259]
[1755464426341,3.08973944,191.13,191.06,2.45822042]
[1755464426641,3.08973944,191.13,191.11,2.96]
[1755464426843,3.05,191.13,191.11,2.96]
[1755464427043,3.05,191.13,191.12,2.96]
[1755464427245,6.96126184,191.13,191.06,2.45822042]
[1755464427544,3.05,191.13,191.11,2.96]
[1755464427943,3.05,191.13,191.06,2.45822042]
[1755464428152,3.05,191.13,191.07,2.96]
[1755464431844,3.98542352,191.12,191.07,2.96]
[1755464432050,3.05,191.11,191.07,2.96]
[1755464432650,0.03417627,191.14,191.07,2.96]
[1755464432948,3.98532636,191.13,191.07,2.96]
[1755464433139,3.05,191.09,191.07,2.96]
[1755464436552,0.03586037,191.1,191.07,2.96]
[1755464436553,3.05,191.08,191.07,2.96]
[1755464440755,3.05,191.08,191.02,2.45822042]
[1755464441054,3.05,191.09,191.03,2.96]
[1755464444854,3.9859827,191.08,191.03,2.96]
[1755464445051,3.05,191.07,191.03,2.96]
[1755464448258,3.05,191.07,191.03,4.53416099]
[1755464448453,3.05,191.07,191.04,3.01]
[1755464452762,2.89,191.09,191.05,1.57416099]
[1755464453056,2.89,191.09,191.08,3.01]
[1755464454957,2.89,191.09,191.05,1.57416099]
[1755464455264,2.89,191.09,191.06,3.01]
[1755464455666,2.92763049,191.09,191.06,3.01]
[1755464457261,2.92763049,191.09,191.01,7.69135286]
[1755464457563,2.92763049,191.09,191.07,3.01]
[1755464458563,2.92763049,191.09,191.08,3.01]
[1755464458758,6.90950677,191.09,191.08,3.01]
[1755464459766,2.92763049,191.09,191.08,3.01]
[1755464460261,0.03763049,191.09,191.08,3.01]
[1755464460964,2.92763049,191.09,191.08,3.01]
[1755464461669,0.03763049,191.09,191.08,3.01]
[1755464462467,2.92763049,191.09,191.08,3.01]
[1755464465560,6.91421873,191.09,191.08,3.01]
[1755464467266,4.02421873,191.09,191.02,3.01]
[1755464467569,2.89,191.07,191.02,3.01]
[1755464468877,0.03763049,191.09,190.91,351.54]
[1755464468878,2.89,191.05,191.0,3.01]
[1755464469172,2.89,191.05,190.99,3.01]
[1755464469560,0.03507889,191.04,190.99,3.01]
[1755464469765,2.89,191.03,190.99,3.01]
[1755464471468,2.89,191.01,190.96,3.01]
[1755464471780,2.89,190.99,190.92,3.01]
[1755464471978,2.89,190.97,190.92,3.01]
[1755464472678,0.03708282,190.96,190.92,3.01]
[1755464472877,2.89,190.95,190.92,3.01]
[1755464473883,2.89,190.94,190.92,3.01]
[1755464474172,0.03708282,190.96,190.9,3.01]
[1755464474379,0.03708282,190.96,190.92,5.2343]
[1755464474579,0.03708282,190.96,190.93,3.01]
[1755464477178,0.03708282,190.96,190.91,3.01]
[1755464477381,2.89,190.94,190.91,3.01]
[1755464480081,2.85708282,190.96,190.91,3.01]
[1755464480672,2.85708282,190.96,190.91,8.2447]
[1755464480879,2.85708282,190.96,190.92,2.94]
[1755464481073,0.03708282,190.96,190.93,5.234]
[1755464481282,0.03708282,190.96,190.94,2.94]
[1755464484786,0.03708282,190.96,190.92,2.45955286]
[1755464484787,2.82,190.95,190.92,2.45955286]
[1755464484986,2.82,190.95,190.93,2.94]
[1755464485191,0.03708282,190.96,190.92,2.45955286]
[1755464485487,2.85708282,190.96,190.92,2.45955286]
[1755464485790,2.82,190.95,190.93,2.94]
[1755464486291,2.82,190.95,190.9,2.94]
[1755464486499,2.82,190.95,190.91,2.94]
[1755464486798,2.82,190.94,190.91,2.94]
[1755464490801,2.82,190.93,190.91,2.94]
[1755464491800,0.03534843,190.95,190.92,2.94]
[1755464493102,2.85534843,190.95,190.93,2.94]
[1755464494906,0.03534843,190.95,190.93,2.94]
[1755464495101,2.82,190.94,190.93,2.94]
[1755464497501,0.03534843,190.95,190.93,2.94]
[1755464497702,2.85534843,190.95,190.93,2.94]
[1755464498308,2.82,190.94,190.93,2.94]
[1755464510418,2.82,190.94,190.93,4.51571074]
[1755464518326,2.82,190.94,190.93,4.38571074]
[1755464518517,0.03534843,190.95,190.93,1.57571074]
[1755464518716,3.09534843,190.95,190.94,2.81]
[1755464520319,0.03534843,190.95,190.94,2.81]
[1755464520521,3.06,191.04,190.95,2.81]
[1755464520717,7.07324829,191.03,190.95,2.81]
[1755464520920,3.06,191.03,191.02,4.38571074]
[1755464521121,3.06,191.1,191.03,2.81]
[1755464521422,3.06,191.08,191.06,1.57571074]
[1755464521616,11.81027341,191.07,191.06,4.38571074]
[1755464521823,7.07410586,191.07,191.06,1.57571074]
[1755464522015,3.06,191.18,191.06,1.57571074]
[1755464522211,3.06,191.18,191.14,1.57571074]
[1755464522414,3.06,191.18,191.12,1.57571074]
[1755464522830,3.06,191.18,191.14,0.03637371]
[1755464523525,3.06,191.18,191.14,1.61208445]
[1755464524427,3.06,191.18,191.14,0.03637371]
[1755464531829,3.06,191.18,191.14,1.60637371]
[1755464532233,3.06,191.18,191.14,0.03637371]
[1755464538633,3.06,191.18,191.14,1.60637371]
[1755464538834,3.06,191.18,191.14,0.03637371]
[1755464539637,3.06,191.18,191.14,1.60637371]
[1755464540027,3.06,191.18,191.14,0.03637371]
[1755464540733,3.06,191.18,191.14,1.60637371]
[1755464543538,3.06,191.18,191.16,1.57]
[1755464543936,2.82,191.26,191.14,0.03637371]
[1755464544136,2.82,191.24,191.17,1.57]
[1755464544739,2.82,191.24,191.19,0.03673822]
[1755464544942,2.82,191.24,191.2,1.57]
[1755464546442,2.82,191.24,191.21,1.57]
[1755464547340,2.45687502,191.29,191.19,0.03673822]
[1755464547535,8.38647603,191.28,191.2,1.57]
[1755464547741,6.75902079,191.27,191.2,1.57]
[1755464547941,2.45687502,191.29,191.2,1.57]
[1755464547942,3.93902079,191.26,191.2,1.57]
[1755464548244,2.82,191.24,191.21,1.57]
[1755464548942,2.82,191.24,191.21,1.60334828]
[1755464550343,2.82,191.3,191.21,1.60334828]
[1755464550544,2.82,191.28,191.23,1.57]
[1755464550733,2.45687502,191.32,191.22,1.57]
[1755464550937,2.82,191.3,191.22,1.57]
[1755464551241,2.82,191.28,191.21,1.57]
[1755464551547,3.93877248,191.29,191.13,50.59778562]
[1755464551548,2.82,191.34,191.25,1.6087798]
[1755464551741,2.82,191.32,191.25,1.6087798]
[1755464552042,2.82,191.3,191.26,1.57]
[1755464552445,2.82,191.3,191.27,1.60566852]
[1755464552647,2.82,191.29,191.28,1.57]
[1755464553146,2.45687502,191.37,191.28,1.57]
[1755464553342,3.93697637,191.36,191.28,1.57]
[1755464553538,2.82,191.34,191.28,1.57]
[1755464554144,3.93836706,191.33,191.29,1.60679238]
[1755464554345,2.82,191.34,191.29,1.60679238]
[1755464554540,2.45687502,191.39,191.29,1.60679238]
[1755464554541,2.82,191.32,191.29,1.60679238]
[1755464557348,2.82,191.31,191.3,1.57]
[1755464557544,134.05353402,191.42,191.3,1.57]
[1755464557545,2.82,191.38,191.3,1.57]
[1755464557753,2.82,191.36,191.3,1.57]
[1755464557945,3.934886,191.35,191.3,5.2238]
[1755464558250,2.82,191.33,191.32,1.57]
[1755464561152,2.82,191.41,191.32,2.45687502]
[1755464561451,5.27687502,191.39,191.31,0.03436483]
[1755464561646,2.82,191.37,191.29,1.57]
[1755464561953,2.45687502,191.39,191.33,0.03922488]
[1755464561954,2.82,191.35,191.33,0.03922488]
[1755464562150,6.75489085,191.34,191.33,0.03922488]
[1755464570257,2.82,191.34,191.33,1.60922488]
[1755464570758,6.75973144,191.34,191.33,1.60922488]
[1755464571054,6.75973144,191.34,191.33,0.03922488]
[1755464571256,2.82,191.34,191.33,0.03922488]
[1755464572358,6.75971137,191.34,191.33,0.03922488]
[1755464573157,2.82,191.34,191.33,0.03922488]
[1755464573860,6.7592493,191.34,191.33,0.03922488]
[1755464574262,6.75967183,191.34,191.33,0.03922488]
[1755464575160,2.82,191.34,191.33,0.03922488]
[1755464577960,2.82,191.34,191.33,1.60922488]
[1755464580468,2.82,191.34,191.33,0.03922488]
[1755464581271,2.82,191.34,191.33,1.60922488]
[1755464581468,2.82,191.34,191.33,0.03922488]
[1755464584973,2.8,191.39,191.33,1.60922488]
[1755464585164,3.95368862,191.38,191.33,1.60922488]
[1755464585369,2.8,191.36,191.33,1.60922488]
[1755464587067,2.45687502,191.43,191.34,1.57]
[1755464587268,2.8,191.35,191.34,1.57]
[1755464587663,2.8,191.37,191.34,1.57]
[1755464587865,2.8,191.43,191.35,1.57]
[1755464588061,2.8,191.41,191.38,6.7918]
[1755464588260,2.8,191.41,191.39,1.57]
[1755464588466,5.25687502,191.46,191.35,1.57]
[1755464588674,8.42264765,191.45,191.38,0.03753088]
[1755464588874,2.8,191.43,191.38,0.03753088]
[1755464589070,2.8,191.41,191.38,0.03753088]
[1755464589264,2.8,191.39,191.38,0.03753088]
[1755464591275,6.75542636,191.39,191.38,0.03753088]
[1755464596380,6.75542636,191.39,191.38,1.60753088]
[1755464598369,357.24375388,191.47,191.38,1.60753088]
[1755464598570,3.04,191.4,191.39,1.57]
[1755464598774,7.00946751,191.4,191.39,1.57]
[1755464599073,3.96946751,191.4,191.38,0.03753088]
[1755464599275,3.04,191.39,191.38,0.03753088]
[1755464599478,7.009136,191.39,191.38,0.03753088]
[1755464601773,3.04,191.39,191.38,1.60753088]
[1755464602581,3.04,191.45,191.38,1.60753088]
[1755464602787,3.96999487,191.44,191.38,1.60753088]
[1755464602976,3.04,191.42,191.38,1.60753088]
[1755464603780,3.04,191.41,191.38,1.60753088]
[1755464604577,3.04,191.48,191.38,0.03753088]
[1755464604889,3.04,191.45,191.38,0.03753088]
[1755464605078,2.45687502,191.46,191.38,0.03753088]
[1755464605079,3.04,191.43,191.38,0.03753088]
[1755464605276,3.04,191.41,191.38,0.03753088]
[1755464605484,3.04,191.39,191.38,0.03753088]
[1755464609588,7.008668,191.39,191.38,0.03753088]
[1755464612492,3.04,191.39,191.38,0.03753088]
[1755464617398,8.3006289,191.47,191.38,0.03753088]
[1755464617595,11.47681701,191.46,191.38,0.03753088]
[1755464617802,8.3006289,191.47,191.38,0.03753088]
[1755464617803,8.43681701,191.45,191.38,0.03753088]
[1755464618004,7.00678776,191.44,191.38,0.03753088]
[1755464618205,3.04,191.42,191.38,1.60753088]
[1755464618406,3.04,191.4,191.38,1.60753088]
[1755464618704,3.04,191.39,191.38,1.60753088]
[1755464619301,3.04,191.39,191.38,0.03753088]
[1755464619909,7.00735638,191.39,191.38,0.03753088]
[1755464628121,11.48466861,191.39,191.38,0.03753088]
[1755464630420,11.48542467,191.39,191.38,0.03753088]
[1755464633920,7.00735638,191.39,191.38,1.60753088]
[1755464634123,3.96735638,191.39,191.38,1.60753088]
[1755464638824,2.96,191.43,191.38,1.60753088]
[1755464639020,3.97730137,191.42,191.38,1.60753088]
[1755464639220,3.97730137,191.41,191.39,7.67827502]
[1755464639415,2.96,191.43,191.4,1.57]
[1755464639625,3.97728798,191.42,191.4,1.57]
[1755464639922,2.96,191.43,191.4,1.57]
[1755464640121,3.9774659,191.42,191.4,1.57]
[1755464640323,2.96,191.44,191.41,1.57]
[1755464640524,3.97908435,191.43,191.42,2.45687502]
[1755464640728,2.96,191.46,191.42,9.24747502]
[1755464640920,3.9790566,191.45,191.43,1.57]
[1755464641225,2.96,191.5,191.43,1.57]
[1755464641522,5.84375388,191.56,191.41,0.03612804]
[1755464641727,2.96,191.55,191.45,2.45687502]
[1755464641925,2.96,191.55,191.47,0.034202]
[1755464643029,2.45687502,191.5,191.39,353.45687502]
[1755464643232,2.96,191.49,191.39,353.48687502]
[1755464644427,2.96,191.45,191.39,2.45687502]
[1755464653131,2.96,191.45,191.39,2.48687502]
[1755464653527,3.93450079,191.44,191.39,2.48687502]
[1755464653729,2.96,191.43,191.4,0.03]
[1755464655443,2.96,191.43,191.39,2.45687502]
[1755464655738,2.96,191.43,191.39,2.48687502]
[1755464657543,2.96,191.43,191.39,2.45687502]
[1755464657745,2.96,191.43,191.4,0.03]
[1755464658645,2.97442524,191.46,191.39,7.67847502]
[1755464658844,3.93394165,191.45,191.4,0.03]
[1755464659054,6.87394165,191.44,191.41,0.03]
[1755464659257,2.94,191.43,191.39,2.45687502]
[1755464659456,2.94,191.43,191.4,0.03]
[1755464659860,2.94,191.43,191.39,2.48687502]
[1755464664961,2.94,191.43,191.39,2.45687502]
[1755464665153,2.94,191.43,191.39,2.48687502]
[1755464666762,2.94,191.43,191.39,2.45687502]
[1755464668368,3.93543494,191.42,191.39,2.45687502]
[1755464668563,2.94,191.41,191.36,2.45687502]
[1755464668769,2.94,191.41,191.33,0.03]
[1755464668770,2.94,191.39,191.33,2.45687502]
[1755464669069,8.33505414,191.46,191.33,2.45687502]
[1755464669070,2.94,191.37,191.33,2.45687502]
[1755464669668,2.97914983,191.37,191.33,2.45687502]
[1755464672569,2.97914983,191.37,191.34,0.03]
[1755464672879,2.94,191.4,191.37,0.03]
[1755464673174,2.94,191.48,191.4,0.03]
[1755464673377,3.93431413,191.47,191.4,0.03]
[1755464673566,3.93431413,191.46,191.4,0.03]
[1755464673770,2.94,191.44,191.4,0.03]
[1755464673971,2.94,191.44,191.42,2.45687502]
[1755464674169,5.84375388,191.52,191.42,2.45687502]
[1755464674375,2.94,191.5,191.42,2.45687502]
[1755464674573,2.94,191.48,191.42,2.45687502]
[1755464674871,2.94,191.46,191.44,0.03519068]
[1755464675074,3.93472316,191.47,191.44,0.03519068]
[1755464675075,3.93472316,191.45,191.44,0.03519068]
[1755464675276,6.87472316,191.45,191.44,0.03519068]
[1755464676572,2.94,191.45,191.44,0.03519068]
[1755464676770,5.84375388,191.54,191.44,3.00519068]
[1755464676971,8.31844575,191.53,191.45,5.42687502]
[1755464677172,8.31844575,191.52,191.45,5.42687502]
[1755464677474,8.31844575,191.51,191.45,5.42687502]
[1755464677776,3.93819885,191.5,191.45,5.42687502]
[1755464677978,3.93819885,191.49,191.45,5.42687502]
[1755464678174,3.93819885,191.48,191.45,5.42687502]
[1755464678475,3.93819885,191.47,191.45,2.45687502]
[1755464678681,2.94,191.45,191.44,0.03519068]
[1755464678978,6.87819885,191.45,191.44,0.03519068]
[1755464679180,2.94,191.44,191.3,2.97]
[1755464679476,2.94,191.42,191.34,2.97]
[1755464679680,2.94,191.4,191.37,2.97]
[1755464679874,2.94,191.4,191.39,2.97]
[1755464680179,5.84375388,191.48,191.39,2.97]
[1755464680373,2.94,191.46,191.39,5.42687502]
[1755464680573,3.93831978,191.45,191.4,2.97]
[1755464680772,6.87831978,191.44,191.42,2.45687502]
[1755464681075,2.94,191.45,191.43,2.97]